Cogmind - Beta 17.1 @@@ ROGUE MODE // 2026.09.23 @ 21:52:33 Player: acra Result: Self-destructed Performance ------------- Evolutions (2) 1000 Regions Visited (4) 800 Robots Destroyed (41) 205 Value Destroyed (1142) 1142 Prototype IDs (2) 40 Alien Tech Used (0) 0 Bonus (0) 0 TOTAL SCORE: 3187 Bonus ------- None Cogmind --------- Core Integrity 503/550 Matter 300/300 Energy 10/160 System Corruption 0% Temperature Cool (0) Movement Core (450) Ox8 Location -8/Materials Parts ------- > --- POWER (1) -------- Light Nuclear Core > --- PROPULSION (2) --- Aluminum Leg > --- UTILITY (6) ------ Heat Sink Improved Heat Sink Medium Storage Unit Improved Sensor Array Shield Generator Hacking Suite > --- WEAPON (2) ------- Beam Cannon Advanced Beam Cannon > --- INVENTORY (10) --- Improved Ion Engine Light Nuclear Core Aluminum Leg Aluminum Leg Target Analyzer EM Shotgun Beam Rifle Particle Gun Particle Gun Mini Grenade Launcher Peak State ------------ > --- POWER ------------ Light Nuclear Core > --- PROPULSION ------- Aluminum Leg Compact Wheel > --- UTILITY ---------- Heat Sink Improved Heat Sink Medium Storage Unit Improved Sensor Array Shield Generator Hacking Suite > --- WEAPON ----------- Beam Cannon Advanced Beam Cannon > --- INVENTORY -------- Improved Ion Engine Light Nuclear Core Aluminum Leg Aluminum Leg Target Analyzer EM Shotgun Beam Rifle Particle Gun Particle Gun Mini Grenade Launcher [Rating: 24] Favorites ----------- Power Ion Engine Engine Ion Engine Power Core Light Nuclear Core Propulsion Aluminum Leg Leg Aluminum Leg Wheel Compact Wheel Utility Heat Sink Device Heat Sink Storage Medium Storage Unit Hackware Hacking Suite Protection Light Armor Plating Weapon Beam Cannon Energy Gun Medium Laser Energy Cannon Beam Cannon Ballistic Gun Assault Rifle Build | -11 -10 -10 -9 -8 ------- Run | Yrd Mat Min Mat Mat Slots Evolved 4 | . . . 2 2 Power . | . . . . . Propulsion . | . . . . . Utility 4 | . . . 2 2 Weapon . | . . . . . Parts Attached 36 | 9 3 . 17 7 Power 6 | 1 . . 4 1 Engine 4 | 1 . . 3 . Core 2 | . . . 1 1 Reactor . | . . . . . Propulsion 10 | 3 . . 5 2 Treads . | . . . . . Leg 8 | 2 . . 5 1 Wheel 2 | 1 . . . 1 Hover . | . . . . . Flight . | . . . . . Utility 12 | 2 1 . 5 4 Device 8 | 1 . . 4 3 Storage 2 | 1 1 . . . Processor . | . . . . . Hackware 1 | . . . . 1 Protection 1 | . . . 1 . Artifact . | . . . . . Weapon 8 | 3 2 . 3 . Energy Gun 3 | 2 . . 1 . Energy Cannon 4 | . 2 . 2 . Ballistic Gun 1 | 1 . . . . Ballistic Cannon . | . . . . . Launcher . | . . . . . Special Weapon . | . . . . . Impact Weapon . | . . . . . Slashing Weapon . | . . . . . Piercing Weapon . | . . . . . Special Melee Weapon . | . . . . . Unidentified Prototypes 2 | . . . 2 . Parts Lost 6 | . . . 5 1 Power 1 | . . . 1 . Propulsion 1 | . . . . 1 Utility 3 | . . . 3 . Weapon 1 | . . . 1 . Highest Loss Streak 3 | . . . 3 1 To Critical Strikes . | . . . . . Average Backups 8 | 2 6 8 9 9 Power 2 | . 1 2 2 2 Propulsion 2 | 1 1 1 2 2 Utility 1 | . 1 3 1 . Weapon 2 | . 1 2 2 4 Tool/Special . | . . . . . Unused Backups 12 | . 2 . 2 8 Power 3 | . . . 2 1 Propulsion 3 | . 1 . . 2 Utility 1 | . . . . 1 Weapon 5 | . 1 . . 4 Tool/Special . | . . . . . Average Slot Usage (%) 97 | . 100 100 95 98 Engine 9 | . 14 14 8 3 Core 2 | . . . 2 6 Leg 21 | . 28 28 22 9 Wheel 1 | . . . . 7 Device 22 | . 14 14 24 36 Storage 11 | . 14 14 11 9 Hackware 1 | . . . . 8 Protection 3 | . . . 5 . Energy Gun 5 | . 21 . . . Energy Cannon 17 | . 6 28 22 18 Peak Build Rating 24 | 9 10 10 15 24 Average Rating 12 | 5 9 10 12 20 On Entrance 8 | . 9 10 10 13 Avg Prop Armor Cover (%) 7 | . . . . 7 Naked Turns . | . . . . . Heaviest Build 29 | 14 22 22 28 29 Greatest Support 20 | 20 20 20 20 16 Greatest Overweight (x) 1 | . 1 1 1 1 Average Overweight (x) . | . . 1 . 1 Largest Inventory Capacity 10 | 8 10 10 10 10 Average Capacity 9 | 6 8 10 10 10 Most Carried 10 | 4 8 8 10 10 Average Carried 8 | 2 6 8 9 9 Final Capacity 10 | 8 10 10 10 10 Final Carried 10 | 4 8 8 10 10 Class Distribution -------------------- 63% | Scavenger-Mutant 36% | Mutant Dominant Class ---------------- Mutant | -10/Materials Mutant | -10/Mines Scavenger-Mutant | -9/Materials Scavenger-Mutant | -8/Materials Resources | -11 -10 -10 -9 -8 ----------- Run | Yrd Mat Min Mat Mat Matter Collected 563 | 138 128 72 150 75 Remotely . | . . . . . Salvage Created 1634 | 10 163 . 1076 385 Parts 92 | 4 13 . 58 17 Haulers Intercepted 3 | . 2 . 1 . Recyclers Shooed 2 | . . . 2 . Parts Field Recycled . | . . . . . Retrieved Matter . | . . . . . Parts Self-Destructed . | . . . . . Prevented . | . . . . . Parts Restored . | . . . . . Kills | -11 -10 -10 -9 -8 ------- Run | Yrd Mat Min Mat Mat Combat Hostiles Destroyed 30 | . 3 . 21 6 Guns 3 | . 3 . . . Cannons 26 | . . . 20 6 Classes Destroyed 9 | 1 3 . 4 1 Tunneler 1 | 1 . . . . Hauler 3 | . 2 . 1 . Recycler 3 | . . . 2 1 Operator 1 | . 1 . . . Watcher 3 | . . . 2 1 Swarmer 6 | . 3 . 3 . Grunt 18 | . . . 14 4 Brawler 2 | . . . . 2 Sentry 4 | . . . 4 . Best Kill Streak 5 | 1 3 . 5 5 Combat Bots Only 3 | . 3 . 3 3 Max Kills in Single Turn 2 | 1 2 . 1 1 Gunslinging 1 | . 1 . . . Exploded . | . . . . . Melee . | . . . . . Uniques/NPCs Destroyed . | . . . . . Combat | -11 -10 -10 -9 -8 -------- Run | Yrd Mat Min Mat Mat Hostile Shots Fired 143 | . 31 . 78 34 Missed 42 | . 12 . 21 9 Hits 101 | . 19 . 57 25 Projectile 101 | . 19 . 57 25 Critical Strikes 6 | . . . 4 2 Damage Taken 1163 | . 157 . 747 259 Core 218 | . 32 . 139 47 Absorbed by Shields 73 | . . . . 73 Regen/Repaired (Parts) 34 | . . . 34 . Core Remaining (%) 84 | 100 . 87 65 . Volleys Fired 109 | 7 15 . 64 23 Largest 2 | 2 2 . 2 2 Hottest 128 | 90 120 . 128 128 Shots Fired 216 | 14 30 . 127 45 Gun 32 | 14 18 . . . Cannon 184 | . 12 . 127 45 Launcher . | . . . . . Special . | . . . . . Kinetic 6 | 6 . . . . Thermal 210 | 8 30 . 127 45 Explosive . | . . . . . Electromagnetic . | . . . . . Robot Hit Streak 12 | 3 4 . 12 10 Robot Miss Streak 9 | 2 9 . 3 2 Penetration Max . | . . . . . Secondary Targets 1 | . 1 . . . Max Gunslinging Chain 1 | . 1 . . . Shots Hit Robots 139 | 9 12 . 85 33 Core Hits 57 | 2 7 . 32 16 Critical Kills 1 | . . . 1 . Critical Parts Destroyed . | . . . . . Critical Strikes 1 | . . . 1 . Meltdown 1 | . . . 1 . Melee Attacks . | . . . . . Impact . | . . . . . Slashing . | . . . . . Piercing . | . . . . . Sneak Attacks . | . . . . . Combat Hostiles . | . . . . . Follow-up Attacks . | . . . . . Damage Inflicted 2504 | 116 181 . 1524 683 Guns 176 | 116 60 . . . Cannons 2321 | . 121 . 1523 677 Explosions . | . . . . . Melee . | . . . . . Ramming 7 | . . . 1 6 Kinetic 53 | 53 . . . . Thermal 2444 | 63 181 . 1523 677 Explosive . | . . . . . Electromagnetic . | . . . . . Impact . | . . . . . Slashing . | . . . . . Piercing . | . . . . . Highest Corruption 2 | . 2 2 . . Average Corruption 2 | . 2 2 . . Corruption Purged . | . . . . . Corruption Blocked . | . . . . . Effects 4 | . 3 1 . . Matter Fused 1 | . . 1 . . Heat Flow Errors 2 | . 2 . . . Data Loss (minor) 1 | . 1 . . . Overload Shots . | . . . . . Overflow Damage 18 | . . . 18 . Projectiles 18 | . . . 18 . Explosions . | . . . . . Melee . | . . . . . Knockbacks 1 | . . . . 1 Impact 1 | . . . . 1 Kinetic . | . . . . . Secondary . | . . . . . Self-Inflicted Damage 2 | . . . . 2 Shots . | . . . . . Rammed 2 | . . . . 2 Targets Rammed 3 | . . . 1 2 Kicked 1 | . . . 1 . Crushed . | . . . . . Highest Temperature 406 | 54 406 . 339 21 Average Temperature 94 | 26 155 . 74 6 Received Heat Transfer 536 | . . . 387 149 Effects 1 | . . . 1 . Shutdowns 1 | . . . 1 . Siege Activations . | . . . . . Martial Activations . | . . . . . Shielding Activations . | . . . . . Robots Disrupted . | . . . . . Combat Hostiles . | . . . . . Robots Corrupted . | . . . . . Combat Hostiles . | . . . . . Parts Fried . | . . . . . Impact Corruptions . | . . . . . Robots Melted 1 | . . . 1 . Combat Hostiles 1 | . . . 1 . Parts Melted 6 | . . . 5 1 Heat Transferred 5070 | 185 408 . 3145 1332 Parts Sabotaged . | . . . . . Parts Stolen . | . . . . . Parts Stripped . | . . . . . Power Chain Reactions . | . . . . . Alert | -11 -10 -10 -9 -8 ------- Run | Yrd Mat Min Mat Mat Maximum Alert Level 1 | . . . 1 . Low Security (%) 91 | 100 100 100 84 100 Level 1 8 | . . . 15 . Level 2 . | . . . . . Level 3 . | . . . . . Level 4 . | . . . . . Level 5 . | . . . . . High Security . | . . . . . Max Security . | . . . . . Peak Influence 242 | 5 71 . 242 140 Initial 78 | . . . . 78 Average 82 | . 18 . 113 103 Influence Increases 875 | 5 108 . 609 153 Destroy 0b10 Robot/C 600 | . 60 . 420 120 Destroy 0b10 Robot/NC 55 | 5 15 . 25 10 Destroy Leader 152 | . 14 . 116 22 Successful Hack 19 | . 19 . . . Disable Machine 15 | . . . 15 . Destroy Structure 4 | . . . 3 1 Lose Combat Pursuer 30 | . . . 30 . Influence Decreases 754 | 5 108 . 422 219 Entered New Map 109 | . . . . 109 Time Decay 585 | 5 108 . 372 100 Lost Part 60 | . . . 50 10 Squads Dispatched 2 | . . . 2 . Investigation 2 | . . . 2 . Extermination . | . . . . . Reinforcement . | . . . . . Assault . | . . . . . Garrison . | . . . . . Intercept . | . . . . . Searches Triggered . | . . . . . Construction Impeded . | . . . . . Haulers Reinforced . | . . . . . Active Scanning Responses . | . . . . . Cargo Convoy Interrupts . | . . . . . Stealth | -11 -10 -10 -9 -8 --------- Run | Yrd Mat Min Mat Mat Distress Signals 6 | . . . 4 2 Communications Jammed . | . . . . . Distress Signals . | . . . . . Times Spotted 46 | . 6 . 23 17 Peak Tracking Total 9 | . 3 . 4 9 Tactical Retreats 2 | . . . 2 . Traps | -11 -10 -10 -9 -8 ------- Run | Yrd Mat Min Mat Mat Traps Triggered 2 | . 1 . 1 . Indirectly . | . . . . . Trap Hack Attempts . | . . . . . Triggered . | . . . . . Disarmed . | . . . . . Reprogrammed . | . . . . . Reused . | . . . . . Traps Extracted . | . . . . . Installed . | . . . . . Triggered . | . . . . . Machines | -11 -10 -10 -9 -8 ---------- Run | Yrd Mat Min Mat Mat Machines Disabled 1 | . . . 1 . Max in Single Turn 1 | . . . 1 . Machines Repaired . | . . . . . Machines Dismantled . | . . . . . Machines Sabotaged . | . . . . . Overloaded Fab Kills . | . . . . . Hacking | -11 -10 -10 -9 -8 --------- Run | Yrd Mat Min Mat Mat Machines Accessed 11 | . 5 . 5 1 Terminals 7 | . 4 . 3 . Fabricators . | . . . . . Repair Stations 1 | . . . 1 . Recycling Units 2 | . 1 . . 1 Scanalyzers 1 | . . . 1 . Garrison Access . | . . . . . Total Hacks 23 | . 9 . 13 1 Successful 13 | . 5 . 7 1 Failed 9 | . 4 . 5 . Catastrophic 4 | . 2 . 2 . Database Lockouts 1 | . . . 1 . Manual 15 | . 6 . 9 . Terminals 14 | . 8 . 6 . Fabricators . | . . . . . Repair Stations 3 | . . . 3 . Recycling Units 2 | . 1 . . 1 Scanalyzers 4 | . . . 4 . Garrison Access . | . . . . . Terminal Hacks 6 | . 4 . 2 . Emergency Access Points 1 | . . . 1 . Terminal Index 1 | . 1 . . . Registered Components 1 | . 1 . . . Zone Layout 3 | . 2 . 1 . Fabricator Hacks . | . . . . . Repair Station Hacks 2 | . . . 2 . Scan Component 1 | . . . 1 . Repair 1 | . . . 1 . Recycling Unit Hacks 2 | . 1 . . 1 Retrieve Components 2 | . 1 . . 1 Scanalyzer 3 | . . . 3 . Insert Component 1 | . . . 1 . Analyze 1 | . . . 1 . Retrieve Study 1 | . . . 1 . Garrison Access Hacks . | . . . . . Unauthorized Hacks . | . . . . . Terminals . | . . . . . Fabricators . | . . . . . Repair Stations . | . . . . . Recycling Units . | . . . . . Scanalyzers . | . . . . . Garrison Access . | . . . . . Data Cores Recovered 1 | . 1 . . . Used . | . . . . . Hacking Detections 8 | . 4 . 4 . Full Trace Events 1 | . . . 1 . Feedback Events . | . . . . . Feedback Blocked . | . . . . . Robot Schematics Acquired . | . . . . . Robots Built . | . . . . . Authchips . | . . . . . Time . | . . . . . Total Robot Build Rating . | . . . . . Part Schematics Acquired 1 | . . . 1 . Parts Built . | . . . . . Authchips . | . . . . . Time . | . . . . . Total Part Build Rating . | . . . . . Part Studies Acquired 1 | . . . 1 . Parts Repaired 1 | . . . 1 . Time 32 | . . . 32 . Parts Recycled . | . . . . . Recycled Matter . | . . . . . Retrieved Matter . | . . . . . Retrieved Components 4 | . 1 . . 3 Parts Scanalyzed 1 | . . . 1 . Part Schematics Acquired 1 | . . . 1 . Parts Damaged . | . . . . . Bothacking | -11 -10 -10 -9 -8 ------------ Run | Yrd Mat Min Mat Mat Used RIF Installer . | . . . . . Robots Hacked . | . . . . . Non-combat . | . . . . . Combat . | . . . . . Robot Hacks Applied . | . . . . . Relay Couplers Released . | . . . . . Fabnet Peak Effective % . | . . . . . Robots Rewired . | . . . . . Allies Hacked . | . . . . . Hacks Repelled . | . . . . . Allies | -11 -10 -10 -9 -8 -------- Run | Yrd Mat Min Mat Mat Total Allies . | . . . . . Largest Group . | . . . . . Highest-Rated Group . | . . . . . Highest-Rated Ally . | . . . . . Total Orders . | . . . . . Ally Attacks . | . . . . . Total Damage . | . . . . . Kills . | . . . . . Allies Corrupted . | . . . . . Allies Melted . | . . . . . Intel | -11 -10 -10 -9 -8 ------- Run | Yrd Mat Min Mat Mat Active Infowar (turns) 830 | 12 370 37 314 97 Sensors 97 | . . . . 97 Terrain 733 | 12 370 37 314 . Robot Analysis Total . | . . . . . Derelict Logs Recovered 1 | . . 1 . . Drone Launches . | . . . . . Drone Recoveries . | . . . . . Exploration | -11 -10 -10 -9 -8 ------------- Run | Yrd Mat Min Mat Mat Turns Passed 1625 | 82 370 37 930 206 Spaces Moved 748 | 40 248 20 343 97 Core 1 | 1 . . . . Treads . | . . . . . Legs 646 | 35 248 20 343 . Wheels 101 | 4 . . . 97 Hover . | . . . . . Flight . | . . . . . Fastest Speed 50 | 50 120 190 120 115 Average Speed 154 | 114 125 190 189 115 Slowest Speed 190 | 120 190 190 190 115 Overloaded Moves . | . . . . . Propulsion Burnouts . | . . . . . Robots Hopped . | . . . . . Potential Cave-ins . | . . . . . Cave-ins Triggered . | . . . . . Exploration Rate (%) 21 | 3 48 8 36 13 Regions Visited 4 Branch Regions 1 Pre-discovered Areas . | . . . . . Known Exits Taken . | . . . . . Unknown Exits Taken 4 | 1 1 1 1 . Scrap Searched . | . . . . . Spaces Dug . | . . . . . Terrain Destroyed . | . . . . . Melee . | . . . . . Projectile . | . . . . . AOE . | . . . . . Terrain Rammed . | . . . . . Walls Destroyed . | . . . . . Machines Disabled . | . . . . . Actions | -11 -10 -10 -9 -8 --------- Run | Yrd Mat Min Mat Mat Total 1006 | 59 280 19 500 148 Wait 58 | . 2 . 50 6 Move 744 | 39 247 19 342 97 Hop . | . . . . . Pick Up 27 | 2 7 . 13 5 Fast Attach 17 | 9 2 . 4 2 Attach 8 | . . . 6 2 Detach 2 | 2 . . . . Swap 12 | . 1 . 7 4 Drop 26 | . 6 . 13 7 Fire 109 | 7 15 . 64 23 Melee . | . . . . . Ram 2 | . . . . 2 Kick 1 | . . . 1 . Crush . | . . . . . Escape Stasis . | . . . . . Rewire . | . . . . . Trap . | . . . . . Miscellaneous . | . . . . . Route ------- -11/Scrapyard -10/Materials (discovered 2 exits: *Mat / [*Min]) -10/Mines -9/Materials -8/Materials History --------- Turn | Location | Event 5 | -11/Scrapyard | Discovered new exit (range 16) 83 | -11/Scrapyard | Entered Materials 301 | -10/Materials | Build established: Mutant 309 | -10/Materials | Discovered new exit (range 10) 424 | -10/Materials | Discovered new exit (range 15) 453 | -10/Materials | Entered Mines 474 | -10/Mines | Learned Materials terminal intel 480 | -10/Mines | Discovered new exit (range 3) 490 | -10/Mines | Entered Materials 490 | -9/Materials | Evolved 2 slots: Utility x2 491 | -9/Materials | Loaded intel: 12 terminal locations 698 | -9/Materials | Central database locked down 843 | -9/Materials | Lost 3 parts (1p2u) 905 | -9/Materials | Build established: Scavenger-Mutant 1122 | -9/Materials | Repaired EM Shotgun 1391 | -9/Materials | Discovered new exit (range 8) 1420 | -9/Materials | Entered another Materials area 1420 | -8/Materials | Evolved 2 slots: Utility x2 1626 | -8/Materials | Self-destructed Last Messages --------------- 01596_ Dropped Imp. Ion Engine. 01597_ Acquired Lgt. Nuclear Core. 01598_ Slammed into T-07 Excavator. 01598_ T-07 Excavator knocked back. 01598_ Heat Sink broken. 01598_ Destabilizing: Short circuit. 01599_ Slammed into T-07 Excavator. 01599_ Destabilizing: System interference. 01599_ Shield Generator temporarily disabled. 01599_ Imp. Sensor Array temporarily disabled. 01600_ W-25 Informer sends out distress signal. 01601_ Dropped Heat Sink. 01603_ Dropped Broken Heat Sink. 01603_ Acquired Heat Sink. 01605_ B-36 Bruiser destroyed. 01606_ Com. Wheel destroyed. 01610_ Critical hit (Burn: +37). 01615_ W-25 Informer sends out distress signal. 01617_ G-47 Trooper destroyed. 01618_ Acquired 15 matter. Map ----- +----------------------------------------------------+ | ?????????????????????????# """"???# ########### | | ?????????????????????????# """"???# | | ?????????????????????????# ??# | | ?????????????????????????# """????# | | ?????????????????????????# ???????# ########### | | ?????????????????????????+ ???????# ##????????? | | ?????????????????????????# ???????# # ????????? | | ?????????????????????????# ????????# /?????????? | | ?????????????????????????# ????????# #?????????? | | ?????????????????????????##????????# #?????????? | | ????????????????????????????######## #?????????? | | ?????????????????#??????????# """ # #?????????? | | ????????????###### ########## """ # #?????????? | | ?????????? + """ # #?????????? | | ?????????????????#### #### + #?????????? | | ????????????????????# #??# # #?????????? | | ????????????????????# #??# = # #?????????? | | ?????????????????#### #??######## ##????????? | | ?????????????????# #????????# #????????? | | ?????????????????+ " #????????# #????????? | | ?????????????????# ### #????????# " #????????? | | ?????????????????## #??# #????????# #????????? | | ??????????????????# ???#*#????????# #????????? | | ??????????????????#????#%#????????#######????????? | | ????????????????###+####w########+#??????????????? | | ?????????????# /s@gggg um ????????? | | ?????????????# ! #s######## #??????????????? | | ?????????????# #Y#???????????????????????? | | ?????????????# [ ?# #???????????????????????? | | ?????????????########??#"#???????????????????????? | | ??????????????????????? #???????????????????????? | | ???????????????????????!]#???????????????????????? | | ???????????????????????!/#???????????????????????? | | ??????????????????????? ???????????????????????? | | ??????????????????????? #???????????????????????? | | ??????????????????????? ????????????????????????? | | ??????????????????????? ????????????????????????? | | ??????????????????????? ????????????????????????? | | ??????????????????????? ????????????????????????? | | ???????????????????????##????????????????????????? | | ?????????????????????????????????????????????????? | | ?????????????????????????????????????????????????? | | ?????????????????????????????????????????????????? | | ?????????????????????????????????????????????????? | | ?????????????????????????????????????????????????? | | ?????????????????????????????????????????????????? | | ?????????????????????????????????????????????????? | | ?????????????????????????????????????????????????? | | | | | +----------------------------------------------------+ Best States ------------- Heat Dissipation 61 Energy Generation 14 Energy Capacity 265 Matter Stores 300 Matter Capacity 300 Sight Range 16 Robot Scan Range 15 Terrain Scan Range 16 Terrain Scan Density 10 Armor Coverage 150 Evasion (%) 55 Offensive Hacking 10 Item Schematics ----------------- Hacking Suite | -9/Materials | Scanalyzed Robot Schematics ------------------ None Fabricated ------------ Nothing Repaired ---------- EM Shotgun | 32% | -9/Materials Studied --------- Beam Cannon | -9/Materials | Hacked Alien Tech Used ----------------- None Achievements -------------- None Challenges ------------ None Game ------ Seed WeaponsCoilDeconstructor Manual? 0 Play Time 00:22:53 Cumulative 60.7 hours Start 2026.09.23 @ 21:20:06 End 2026.09.23 @ 21:52:33 Sessions 1 Manual Loads 0 Difficulty Rogue Special Mode None Game No. 99 Rogue 80 Adventurer 18 Explorer 1 Win Type - Total 4 Types 4/0/0/0/0/0/0/0/0/0 Lore% 15 Gallery% 36 Achievement% 24 Wizard Run 0 Options --------- Layout 1 ASCII 0 Keyboard 0 Movement Mouse Keybinds 0 Fullscreen 2 Font 24/Smallcaps Map View 50x35 Zoom Use 0% Tactical HUD 1 Map Filters NONE Filters NONE Steam 1 RUN: 38f0e9dd-eedd-480e-9f88-4036ede9342b